[Event "Titled Tuesday Blitz February 14 Early 2023"]
[White "Khandelwal, Ankush"]
[Black "Nigmatov, Ortik"]
[WhiteFideId "413470"]
[BlackFideId "14202131"]
[WhiteElo "2205"]
[BlackElo "2438"]
[Result "0-1"]
[Round "04"]
[TimeControl "180+2"]
[Date "2023.02.15"]
[WhiteClock "0:00:10"]
[BlackClock "0:00:12"]

1. d4 {[%clk 0:02:56]}  Nf6 {[%clk 0:02:59]} 2. Nc3 {[%clk 0:02:56]}  d5 {[%clk 0:02:58]} 3. Bf4 {[%clk 0:02:55]}  e6 {[%clk 0:02:55]} 4. h4 {[%clk 0:02:48]}  Bb4 {[%clk 0:02:54]} 5. e3 {[%clk 0:02:39]}  Ne4 {[%clk 0:02:51]} 6. Ne2 {[%clk 0:02:37]}  c5 {[%clk 0:02:51]} 7. dxc5 {[%clk 0:02:35]}  Nc6 {[%clk 0:02:46]} 8. f3 {[%clk 0:02:34]}  Nxc3 {[%clk 0:02:46]} 9. Nxc3 {[%clk 0:02:33]}  e5 {[%clk 0:02:33]} 10. Bg3 {[%clk 0:02:29]}  Be6 {[%clk 0:02:18]} 11. a3 {[%clk 0:02:19]}  Bxc3+ {[%clk 0:02:16]} 12. bxc3 {[%clk 0:02:18]}  Qa5 {[%clk 0:02:16]} 13. Qd2 {[%clk 0:02:13]}  Qxc5 {[%clk 0:02:15]} 14. Bf2 {[%clk 0:02:07]}  Qe7 {[%clk 0:02:09]} 15. a4 {[%clk 0:02:05]}  O-O {[%clk 0:02:08]} 16. Bd3 {[%clk 0:01:58]}  Rad8 {[%clk 0:02:06]} 17. Rb1 {[%clk 0:01:51]}  e4 {[%clk 0:02:05]} 18. Be2 {[%clk 0:01:51]}  exf3 {[%clk 0:01:57]} 19. gxf3 {[%clk 0:01:50]}  Bf5 {[%clk 0:01:39]} 20. h5 {[%clk 0:01:47]}  Rfe8 {[%clk 0:01:29]} 21. Rg1 {[%clk 0:01:40]}  Kh8 {[%clk 0:01:25]} 22. Rb5 {[%clk 0:01:37]}  Qf6 {[%clk 0:01:05]} 23. Rg3 {[%clk 0:01:10]}  b6 {[%clk 0:01:02]} 24. Kf1 {[%clk 0:01:09]}  Re5 {[%clk 0:00:57]} 25. f4 {[%clk 0:01:00]}  Ree8 {[%clk 0:00:55]} 26. Rxd5 {[%clk 0:00:48]}  Be4 {[%clk 0:00:51]} 27. c4 {[%clk 0:00:41]}  Bxd5 {[%clk 0:00:48]} 28. cxd5 {[%clk 0:00:42]}  Ne7 {[%clk 0:00:49]} 29. e4 {[%clk 0:00:38]}  Qh6 {[%clk 0:00:27]} 30. Bd4 {[%clk 0:00:33]}  f6 {[%clk 0:00:27]} 31. c4 {[%clk 0:00:32]}  Nc8 {[%clk 0:00:25]} 32. a5 {[%clk 0:00:31]}  Rxe4 {[%clk 0:00:24]} 33. axb6 {[%clk 0:00:31]}  Rxf4+ {[%clk 0:00:23]} 34. Ke1 {[%clk 0:00:27]}  axb6 {[%clk 0:00:23]} 35. Be3 {[%clk 0:00:27]}  g5 {[%clk 0:00:20]} 36. hxg6 {[%clk 0:00:14]}  Qh1+ {[%clk 0:00:19]} 37. Rg1 {[%clk 0:00:15]}  Qh4+ {[%clk 0:00:19]} 38. Kd1 {[%clk 0:00:16]}  Rxc4 {[%clk 0:00:12]} 39. Bxc4 {[%clk 0:00:15]}  Qxc4 {[%clk 0:00:13]} 40. gxh7 {[%clk 0:00:14]}  Rxd5 {[%clk 0:00:12]} 41. Rg8+ {[%clk 0:00:11]}  Kxh7 {[%clk 0:00:13]} 42. Rd8 {[%clk 0:00:11]}  Rxd2+ {[%clk 0:00:12]} 43. Rxd2 {[%clk 0:00:11]}  Ne7 {[%clk 0:00:12]} 44. Rh2+ {[%clk 0:00:09]}  Kg7 {[%clk 0:00:13]} 45. Rh4 {[%clk 0:00:10]}  Qxh4 {[%clk 0:00:12]} 0-1


[Site "https://www.chess.com"]

[Event "Titled Tuesday Blitz February 14 Early 2023"]
[White "Papasimakopoulos, Alexandros"]
[Black "Tymrakiewicz, Rafal"]
[WhiteFideId "4244125"]
[BlackFideId "1108832"]
[WhiteElo "2401"]
[BlackElo "2144"]
[Result "1-0"]
[Round "04"]
[TimeControl "180+2"]
[Date "2023.02.15"]
[WhiteClock "0:00:12"]
[BlackClock "0:00:10"]

1. d4 {[%clk 0:03:00]}  Nf6 {[%clk 0:02:58]} 2. c4 {[%clk 0:03:01]}  d6 {[%clk 0:02:58]} 3. Nf3 {[%clk 0:03:00]}  Nc6 {[%clk 0:02:58]} 4. Nc3 {[%clk 0:02:56]}  e5 {[%clk 0:02:57]} 5. Bg5 {[%clk 0:02:57]}  Be7 {[%clk 0:02:51]} 6. e3 {[%clk 0:02:57]}  O-O {[%clk 0:02:49]} 7. d5 {[%clk 0:02:45]}  Nb8 {[%clk 0:02:45]} 8. e4 {[%clk 0:02:43]}  Na6 {[%clk 0:02:35]} 9. Bc1 {[%clk 0:02:19]}  c6 {[%clk 0:02:16]} 10. Bd3 {[%clk 0:02:18]}  Nc5 {[%clk 0:02:14]} 11. Bc2 {[%clk 0:02:18]}  a5 {[%clk 0:02:14]} 12. O-O {[%clk 0:02:16]}  Bg4 {[%clk 0:02:14]} 13. h3 {[%clk 0:02:16]}  Bh5 {[%clk 0:02:14]} 14. Be3 {[%clk 0:02:15]}  cxd5 {[%clk 0:01:57]} 15. Bxc5 {[%clk 0:02:02]}  dxe4 {[%clk 0:01:44]} 16. Bxd6 {[%clk 0:01:53]}  Bxf3 {[%clk 0:01:18]} 17. Bxe7 {[%clk 0:01:43]}  Bxd1 {[%clk 0:01:17]} 18. Bxd8 {[%clk 0:01:43]}  Bxc2 {[%clk 0:01:18]} 19. Bxf6 {[%clk 0:01:34]}  gxf6 {[%clk 0:01:17]} 20. Rfe1 {[%clk 0:01:27]}  Rfd8 {[%clk 0:01:02]} 21. Nd5 {[%clk 0:00:59]}  Kg7 {[%clk 0:00:56]} 22. Rac1 {[%clk 0:00:56]}  Bd3 {[%clk 0:00:54]} 23. b3 {[%clk 0:00:57]}  f5 {[%clk 0:00:47]} 24. Rc3 {[%clk 0:00:48]}  f6 {[%clk 0:00:46]} 25. Ne7 {[%clk 0:00:45]}  a4 {[%clk 0:00:40]} 26. Nxf5+ {[%clk 0:00:45]}  Kg6 {[%clk 0:00:37]} 27. Ne7+ {[%clk 0:00:34]}  Kf7 {[%clk 0:00:37]} 28. Nd5 {[%clk 0:00:33]}  axb3 {[%clk 0:00:37]} 29. axb3 {[%clk 0:00:33]}  Rac8 {[%clk 0:00:34]} 30. Ne3 {[%clk 0:00:28]}  b5 {[%clk 0:00:26]} 31. Ra1 {[%clk 0:00:21]}  bxc4 {[%clk 0:00:23]} 32. bxc4 {[%clk 0:00:20]}  Ra8 {[%clk 0:00:22]} 33. Rca3 {[%clk 0:00:18]}  Rxa3 {[%clk 0:00:22]} 34. Rxa3 {[%clk 0:00:19]}  Rd7 {[%clk 0:00:20]} 35. Ra4 {[%clk 0:00:18]}  Rc7 {[%clk 0:00:21]} 36. g4 {[%clk 0:00:17]}  Be2 {[%clk 0:00:18]} 37. Kg2 {[%clk 0:00:17]}  Bf3+ {[%clk 0:00:18]} 38. Kg3 {[%clk 0:00:18]}  h5 {[%clk 0:00:17]} 39. Nf5 {[%clk 0:00:14]}  hxg4 {[%clk 0:00:17]} 40. hxg4 {[%clk 0:00:15]}  Rc6 {[%clk 0:00:16]} 41. Ra7+ {[%clk 0:00:14]}  Kf8 {[%clk 0:00:15]} 42. Rb7 {[%clk 0:00:10]}  Rxc4 {[%clk 0:00:14]} 43. Rb8+ {[%clk 0:00:10]}  Kf7 {[%clk 0:00:13]} 44. Nd6+ {[%clk 0:00:10]}  Kg6 {[%clk 0:00:12]} 45. Nxc4 {[%clk 0:00:11]}  Be2 {[%clk 0:00:12]} 46. Ne3 {[%clk 0:00:11]}  Bf3 {[%clk 0:00:10]} 47. Rb7 {[%clk 0:00:12]}  Kg5 {[%clk 0:00:10]} 48. Nf5 {[%clk 0:00:12]}  Kg6 {[%clk 0:00:10]} 49. Rg7# {[%clk 0:00:12]} 1-0


[Site "https://www.chess.com"]

[Event "Titled Tuesday Blitz February 14 Early 2023"]
[White "Hajiyev, Kanan"]
[Black "Morefield, Jason"]
[WhiteFideId "13404148"]
[BlackFideId "30920825"]
[WhiteElo "2197"]
[BlackElo "2167"]
[Result "1-0"]
[Round "04"]
[TimeControl "180+2"]
[Date "2023.02.15"]
[WhiteClock "0:00:04"]
[BlackClock "0:00:03"]

1. d4 {[%clk 0:02:53]}  Nf6 {[%clk 0:03:00]} 2. Nf3 {[%clk 0:02:52]}  b6 {[%clk 0:03:00]} 3. g3 {[%clk 0:02:52]}  Bb7 {[%clk 0:03:00]} 4. Bg2 {[%clk 0:02:53]}  g6 {[%clk 0:03:01]} 5. Nh4 {[%clk 0:02:54]}  Bxg2 {[%clk 0:03:00]} 6. Nxg2 {[%clk 0:02:54]}  Qc8 {[%clk 0:02:49]} 7. c4 {[%clk 0:02:32]}  Qb7 {[%clk 0:02:42]} 8. O-O {[%clk 0:02:31]}  h5 {[%clk 0:02:40]} 9. Nc3 {[%clk 0:02:27]}  Bg7 {[%clk 0:02:39]} 10. Qc2 {[%clk 0:02:15]}  Nc6 {[%clk 0:02:18]} 11. Rd1 {[%clk 0:02:08]}  O-O-O {[%clk 0:02:06]} 12. d5 {[%clk 0:01:54]}  Ne5 {[%clk 0:01:57]} 13. Bf4 {[%clk 0:01:54]}  Nh7 {[%clk 0:01:39]} 14. Ne4 {[%clk 0:01:35]}  f5 {[%clk 0:01:32]} 15. Ng5 {[%clk 0:01:26]}  Nxg5 {[%clk 0:01:29]} 16. Bxg5 {[%clk 0:01:26]}  Rde8 {[%clk 0:01:28]} 17. c5 {[%clk 0:01:15]}  Kb8 {[%clk 0:01:18]} 18. a4 {[%clk 0:01:05]}  Nf7 {[%clk 0:01:02]} 19. Bf4 {[%clk 0:00:46]}  bxc5 {[%clk 0:00:57]} 20. Ra3 {[%clk 0:00:40]}  Ka8 {[%clk 0:00:42]} 21. Rb3 {[%clk 0:00:27]}  Qa6 {[%clk 0:00:36]} 22. Qxc5 {[%clk 0:00:27]}  g5 {[%clk 0:00:31]} 23. Be3 {[%clk 0:00:13]}  Rb8 {[%clk 0:00:19]} 24. Rb5 {[%clk 0:00:13]}  Rb6 {[%clk 0:00:06]} 25. Qxe7 {[%clk 0:00:10]}  Rxb5 {[%clk 0:00:04]} 26. axb5 {[%clk 0:00:11]}  Qf6 {[%clk 0:00:03]} 27. Qa3 {[%clk 0:00:04]} 1-0


[Site "https://www.chess.com"]

[Event "Titled Tuesday Blitz February 14 Early 2023"]
[White "Stoleriu, George"]
[Black "Forgacs, Attila Jr."]
[WhiteFideId "1227505"]
[BlackFideId "773654"]
[WhiteElo "2390"]
[BlackElo "2264"]
[Result "1-0"]
[Round "04"]
[TimeControl "180+2"]
[Date "2023.02.15"]
[WhiteClock "0:01:01"]
[BlackClock "0:01:57"]

1. e4 {[%clk 0:03:00]}  e5 {[%clk 0:02:59]} 2. Nf3 {[%clk 0:03:00]}  Nc6 {[%clk 0:02:59]} 3. Bb5 {[%clk 0:02:58]}  a6 {[%clk 0:02:59]} 4. Ba4 {[%clk 0:02:57]}  Nf6 {[%clk 0:02:59]} 5. d3 {[%clk 0:02:55]}  g6 {[%clk 0:02:58]} 6. Bxc6 {[%clk 0:02:50]}  dxc6 {[%clk 0:02:45]} 7. Nxe5 {[%clk 0:02:50]}  Bg7 {[%clk 0:02:45]} 8. Nf3 {[%clk 0:02:39]}  O-O {[%clk 0:02:43]} 9. O-O {[%clk 0:02:34]}  c5 {[%clk 0:02:39]} 10. Nbd2 {[%clk 0:02:17]}  b6 {[%clk 0:02:37]} 11. a4 {[%clk 0:02:10]}  Bb7 {[%clk 0:02:36]} 12. Nc4 {[%clk 0:01:56]}  b5 {[%clk 0:02:31]} 13. Na5 {[%clk 0:01:55]}  Bc8 {[%clk 0:02:28]} 14. axb5 {[%clk 0:01:51]}  axb5 {[%clk 0:02:28]} 15. Nc6 {[%clk 0:01:51]}  Rxa1 {[%clk 0:02:23]} 16. Nxd8 {[%clk 0:01:52]}  Rxd8 {[%clk 0:02:24]} 17. Qe2 {[%clk 0:01:47]}  Nd7 {[%clk 0:02:15]} 18. Bg5 {[%clk 0:01:41]}  Rxf1+ {[%clk 0:02:13]} 19. Kxf1 {[%clk 0:01:42]}  f6 {[%clk 0:02:11]} 20. Bf4 {[%clk 0:01:37]}  c6 {[%clk 0:02:10]} 21. Qe1 {[%clk 0:01:21]}  Re8 {[%clk 0:01:58]} 22. Qa5 {[%clk 0:01:13]}  f5 {[%clk 0:01:54]} 23. e5 {[%clk 0:01:08]}  Nxe5 {[%clk 0:01:54]} 24. Bxe5 {[%clk 0:01:00]}  Bxe5 {[%clk 0:01:55]} 25. Nxe5 {[%clk 0:01:00]}  Rxe5 {[%clk 0:01:56]} 26. Qd8+ {[%clk 0:01:01]}  Re8 {[%clk 0:01:57]} 27. Qxe8+ {[%clk 0:01:01]} 1-0


[Site "https://www.chess.com"]

[Event "Titled Tuesday Blitz February 14 Early 2023"]
[White "Piesik, Piotr"]
[Black "Krstulovic, Alex"]
[WhiteFideId "1136194"]
[BlackFideId "760056"]
[WhiteElo "2426"]
[BlackElo "2428"]
[Result "0-1"]
[Round "04"]
[TimeControl "180+2"]
[Date "2023.02.15"]
[WhiteClock "0:00:01"]
[BlackClock "0:00:10"]

1. Nf3 {[%clk 0:03:00]}  d5 {[%clk 0:02:58]} 2. g3 {[%clk 0:03:01]}  Nc6 {[%clk 0:02:59]} 3. Bg2 {[%clk 0:03:01]}  Nb8 {[%clk 0:03:00]} 4. d3 {[%clk 0:03:01]}  Nf6 {[%clk 0:02:53]} 5. O-O {[%clk 0:03:02]}  g6 {[%clk 0:02:52]} 6. Nbd2 {[%clk 0:03:01]}  Bg7 {[%clk 0:02:53]} 7. e4 {[%clk 0:03:02]}  O-O {[%clk 0:02:53]} 8. Qe2 {[%clk 0:03:01]}  Nc6 {[%clk 0:02:50]} 9. c3 {[%clk 0:02:57]}  Bg4 {[%clk 0:02:49]} 10. h3 {[%clk 0:02:57]}  Bxf3 {[%clk 0:02:47]} 11. Nxf3 {[%clk 0:02:57]}  e5 {[%clk 0:02:47]} 12. Re1 {[%clk 0:02:52]}  Re8 {[%clk 0:02:47]} 13. Qc2 {[%clk 0:02:48]}  h6 {[%clk 0:02:46]} 14. b4 {[%clk 0:02:48]}  d4 {[%clk 0:02:45]} 15. b5 {[%clk 0:02:47]}  Na5 {[%clk 0:02:43]} 16. cxd4 {[%clk 0:02:46]}  exd4 {[%clk 0:02:43]} 17. Bb2 {[%clk 0:02:44]}  c5 {[%clk 0:02:42]} 18. Qxc5 {[%clk 0:02:41]}  Rc8 {[%clk 0:02:34]} 19. Qxd4 {[%clk 0:02:37]}  Qe7 {[%clk 0:02:34]} 20. Qxa7 {[%clk 0:02:31]}  Qb4 {[%clk 0:02:15]} 21. Rab1 {[%clk 0:02:25]}  Ra8 {[%clk 0:02:09]} 22. Qd4 {[%clk 0:02:13]}  Qxb5 {[%clk 0:01:33]} 23. e5 {[%clk 0:02:13]}  Nc6 {[%clk 0:01:30]} 24. Qh4 {[%clk 0:01:14]}  Nd7 {[%clk 0:01:25]} 25. e6 {[%clk 0:01:07]}  Bxb2 {[%clk 0:01:23]} 26. exd7 {[%clk 0:00:55]}  Rxe1+ {[%clk 0:01:23]} 27. Rxe1 {[%clk 0:00:56]}  Kg7 {[%clk 0:01:16]} 28. Re8 {[%clk 0:00:52]}  Nd8 {[%clk 0:00:54]} 29. Rxd8 {[%clk 0:00:49]}  Bf6 {[%clk 0:00:54]} 30. Rxa8 {[%clk 0:00:20]}  Bxh4 {[%clk 0:00:54]} 31. Nxh4 {[%clk 0:00:20]}  Qxd7 {[%clk 0:00:52]} 32. Nf3 {[%clk 0:00:18]}  Qxd3 {[%clk 0:00:49]} 33. a4 {[%clk 0:00:17]}  Qd1+ {[%clk 0:00:43]} 34. Kh2 {[%clk 0:00:17]}  Qc2 {[%clk 0:00:44]} 35. Ra7 {[%clk 0:00:15]}  Qxf2 {[%clk 0:00:43]} 36. Rxb7 {[%clk 0:00:15]}  Qc5 {[%clk 0:00:34]} 37. Rb5 {[%clk 0:00:12]}  Qc4 {[%clk 0:00:17]} 38. Ra5 {[%clk 0:00:12]}  g5 {[%clk 0:00:14]} 39. Ra8 {[%clk 0:00:09]}  Qd5 {[%clk 0:00:09]} 40. Nh4 {[%clk 0:00:07]}  Qe6 {[%clk 0:00:02]} 41. Nf3 {[%clk 0:00:07]}  Qd5 {[%clk 0:00:03]} 42. Ra6 {[%clk 0:00:06]}  Qd3 {[%clk 0:00:03]} 43. Rc6 {[%clk 0:00:04]}  Qe4 {[%clk 0:00:02]} 44. Rc3 {[%clk 0:00:03]}  Qxa4 {[%clk 0:00:02]} 45. Rc7 {[%clk 0:00:03]}  Qa5 {[%clk 0:00:03]} 46. Rb7 {[%clk 0:00:02]}  h5 {[%clk 0:00:04]} 47. Nd4 {[%clk 0:00:01]}  g4 {[%clk 0:00:04]} 48. Ne6+ {[%clk 0:00:02]}  Kf6 {[%clk 0:00:04]} 49. Nf4 {[%clk 0:00:02]}  gxh3 {[%clk 0:00:04]} 50. Kxh3 {[%clk 0:00:03]}  Qg5 {[%clk 0:00:05]} 51. Kh2 {[%clk 0:00:03]}  h4 {[%clk 0:00:05]} 52. Rb6+ {[%clk 0:00:04]}  Kg7 {[%clk 0:00:05]} 53. Ne2 {[%clk 0:00:03]}  Qh5 {[%clk 0:00:05]} 54. Nf4 {[%clk 0:00:02]}  Qc5 {[%clk 0:00:05]} 55. Rc6 {[%clk 0:00:02]}  Qg5 {[%clk 0:00:05]} 56. Ne2 {[%clk 0:00:01]}  Qg4 {[%clk 0:00:05]} 57. Rc2 {[%clk 0:00:01]}  hxg3+ {[%clk 0:00:05]} 58. Nxg3 {[%clk 0:00:02]}  Qh4+ {[%clk 0:00:05]} 59. Bh3 {[%clk 0:00:02]}  Qf4 {[%clk 0:00:05]} 60. Rg2 {[%clk 0:00:03]}  Kf8 {[%clk 0:00:05]} 61. Kh1 {[%clk 0:00:04]}  Qe5 {[%clk 0:00:06]} 62. Nf5 {[%clk 0:00:04]}  Qe1+ {[%clk 0:00:06]} 63. Kh2 {[%clk 0:00:04]}  Qe5+ {[%clk 0:00:07]} 64. Rg3 {[%clk 0:00:04]}  Qe2+ {[%clk 0:00:07]} 65. Rg2 {[%clk 0:00:04]}  Qe5+ {[%clk 0:00:07]} 66. Ng3 {[%clk 0:00:04]}  Qf4 {[%clk 0:00:08]} 67. Kg1 {[%clk 0:00:04]}  Qc1+ {[%clk 0:00:08]} 68. Nf1 {[%clk 0:00:04]}  Qc5+ {[%clk 0:00:08]} 69. Rf2 {[%clk 0:00:04]}  Qg5+ {[%clk 0:00:09]} 70. Bg2 {[%clk 0:00:05]}  Qc5 {[%clk 0:00:08]} 71. Ng3 {[%clk 0:00:04]}  Qe3 {[%clk 0:00:09]} 72. Nf1 {[%clk 0:00:04]}  Qd4 {[%clk 0:00:09]} 73. Nh2 {[%clk 0:00:05]}  Ke7 {[%clk 0:00:08]} 74. Nf3 {[%clk 0:00:05]}  Qe3 {[%clk 0:00:09]} 75. Kf1 {[%clk 0:00:05]}  Qc1+ {[%clk 0:00:09]} 76. Ne1 {[%clk 0:00:05]}  Qc4+ {[%clk 0:00:10]} 77. Re2+ {[%clk 0:00:05]}  Kf8 {[%clk 0:00:10]} 78. Kf2 {[%clk 0:00:06]}  Qf4+ {[%clk 0:00:10]} 79. Nf3 {[%clk 0:00:06]}  Qc4 {[%clk 0:00:11]} 80. Re3 {[%clk 0:00:06]}  Qc5 {[%clk 0:00:11]} 81. Ke2 {[%clk 0:00:06]}  Qc2+ {[%clk 0:00:11]} 82. Nd2 {[%clk 0:00:06]}  Qa4 {[%clk 0:00:11]} 83. Be4 {[%clk 0:00:06]}  Qa6+ {[%clk 0:00:11]} 84. Bd3 {[%clk 0:00:06]}  Qh6 {[%clk 0:00:11]} 85. Rf3 {[%clk 0:00:06]}  Qh2+ {[%clk 0:00:11]} 86. Rf2 {[%clk 0:00:06]}  Qe5+ {[%clk 0:00:11]} 87. Kf1 {[%clk 0:00:05]}  Qc3 {[%clk 0:00:11]} 88. Be4 {[%clk 0:00:05]}  Qc1+ {[%clk 0:00:10]} 89. Kg2 {[%clk 0:00:05]}  Qc3 {[%clk 0:00:11]} 90. Nf3 {[%clk 0:00:05]}  Qe3 {[%clk 0:00:11]} 91. Bf5 {[%clk 0:00:04]}  Qf4 {[%clk 0:00:10]} 92. Nh2 {[%clk 0:00:03]}  Qg5+ {[%clk 0:00:10]} 93. Ng4 {[%clk 0:00:03]}  Ke7 {[%clk 0:00:10]} 94. Kg3 {[%clk 0:00:03]}  Kd6 {[%clk 0:00:10]} 95. Be4 {[%clk 0:00:02]}  Ke7 {[%clk 0:00:10]} 96. Bf3 {[%clk 0:00:02]}  Qa5 {[%clk 0:00:10]} 97. Re2+ {[%clk 0:00:02]}  Kf8 {[%clk 0:00:10]} 98. Be4 {[%clk 0:00:01]}  Qc7+ {[%clk 0:00:10]} 0-1


[Site "https://www.chess.com"]

[Event "Titled Tuesday Blitz February 14 Early 2023"]
[White "Heinemann, Josefine"]
[Black "Jakubowski, Krzysztof"]
[WhiteFideId "12900460"]
[BlackFideId "1112848"]
[WhiteElo "2289"]
[BlackElo "2486"]
[Result "1-0"]
[Round "04"]
[TimeControl "180+2"]
[Date "2023.02.15"]
[WhiteClock "0:00:01"]
[BlackClock "0:00:11"]

1. e4 {[%clk 0:03:00]}  c5 {[%clk 0:02:57]} 2. Nf3 {[%clk 0:02:59]}  e6 {[%clk 0:02:57]} 3. d4 {[%clk 0:02:58]}  cxd4 {[%clk 0:02:56]} 4. Nxd4 {[%clk 0:02:59]}  Nc6 {[%clk 0:02:56]} 5. Nc3 {[%clk 0:02:59]}  Qc7 {[%clk 0:02:55]} 6. g3 {[%clk 0:02:58]}  a6 {[%clk 0:02:46]} 7. Bg2 {[%clk 0:02:56]}  d6 {[%clk 0:02:46]} 8. O-O {[%clk 0:02:55]}  Bd7 {[%clk 0:02:47]} 9. Nxc6 {[%clk 0:02:48]}  Bxc6 {[%clk 0:02:43]} 10. a4 {[%clk 0:02:48]}  Be7 {[%clk 0:02:41]} 11. a5 {[%clk 0:02:47]}  Nf6 {[%clk 0:02:41]} 12. Re1 {[%clk 0:02:46]}  O-O {[%clk 0:02:40]} 13. Be3 {[%clk 0:02:44]}  Nd7 {[%clk 0:02:39]} 14. Na4 {[%clk 0:02:40]}  Rae8 {[%clk 0:02:39]} 15. Nb6 {[%clk 0:02:36]}  Nxb6 {[%clk 0:02:38]} 16. Bxb6 {[%clk 0:02:34]}  Qc8 {[%clk 0:02:36]} 17. c4 {[%clk 0:02:28]}  f5 {[%clk 0:02:35]} 18. exf5 {[%clk 0:02:20]}  Rxf5 {[%clk 0:02:34]} 19. Bh3 {[%clk 0:02:08]}  Ref8 {[%clk 0:02:13]} 20. Bxf5 {[%clk 0:02:02]}  Rxf5 {[%clk 0:02:14]} 21. Qe2 {[%clk 0:02:01]}  Rf6 {[%clk 0:02:13]} 22. Be3 {[%clk 0:01:56]}  h6 {[%clk 0:01:56]} 23. b4 {[%clk 0:01:53]}  e5 {[%clk 0:01:27]} 24. Rad1 {[%clk 0:01:48]}  Bf3 {[%clk 0:01:24]} 25. Qd3 {[%clk 0:01:47]}  Qg4 {[%clk 0:01:18]} 26. b5 {[%clk 0:01:25]}  Rf5 {[%clk 0:01:15]} 27. bxa6 {[%clk 0:00:44]}  bxa6 {[%clk 0:01:14]} 28. Rb1 {[%clk 0:00:30]}  Rh5 {[%clk 0:01:10]} 29. Rb8+ {[%clk 0:00:11]}  Kf7 {[%clk 0:01:09]} 30. Qh7 {[%clk 0:00:10]}  Rxh2 {[%clk 0:00:58]} 31. Qg8+ {[%clk 0:00:09]}  Kg6 {[%clk 0:00:55]} 32. Qe8+ {[%clk 0:00:09]}  Kf6 {[%clk 0:00:55]} 33. Kxh2 {[%clk 0:00:09]}  Be4 {[%clk 0:00:38]} 34. Qc8 {[%clk 0:00:08]}  Qf3 {[%clk 0:00:35]} 35. Qh3 {[%clk 0:00:08]}  Kg6 {[%clk 0:00:26]} 36. Re8 {[%clk 0:00:06]}  Bg5 {[%clk 0:00:24]} 37. Re6+ {[%clk 0:00:02]}  Kf7 {[%clk 0:00:23]} 38. Rxd6 {[%clk 0:00:01]}  Bf5 {[%clk 0:00:19]} 39. Qg2 {[%clk 0:00:01]}  Qh5+ {[%clk 0:00:18]} 40. Kg1 {[%clk 0:00:01]}  e4 {[%clk 0:00:18]} 41. Bxg5 {[%clk 0:00:01]}  hxg5 {[%clk 0:00:18]} 42. Red1 {[%clk 0:00:02]}  Kg8 {[%clk 0:00:17]} 43. Qh1 {[%clk 0:00:01]}  Qe2 {[%clk 0:00:16]} 44. Rd8+ {[%clk 0:00:02]}  Kf7 {[%clk 0:00:16]} 45. Qh5+ {[%clk 0:00:02]}  Kf6 {[%clk 0:00:16]} 46. Qe8 {[%clk 0:00:01]}  e3 {[%clk 0:00:11]} 47. R1d6+ {[%clk 0:00:01]} 1-0


[Site "https://www.chess.com"]

[Event "Titled Tuesday Blitz February 14 Early 2023"]
[White "Iskusnyh, Sergei"]
[Black "Mushini Ajay"]
[WhiteFideId "4120027"]
[BlackFideId "35066188"]
[WhiteElo "2440"]
[BlackElo "2310"]
[Result "1-0"]
[Round "04"]
[TimeControl "180+2"]
[Date "2023.02.15"]
[WhiteClock "0:00:08"]
[BlackClock "0:00:10"]

1. d4 {[%clk 0:03:00]}  Nf6 {[%clk 0:02:59]} 2. c4 {[%clk 0:02:59]}  e6 {[%clk 0:02:58]} 3. g3 {[%clk 0:02:57]}  c5 {[%clk 0:02:54]} 4. Nf3 {[%clk 0:02:56]}  cxd4 {[%clk 0:02:53]} 5. Nxd4 {[%clk 0:02:57]}  Nc6 {[%clk 0:02:53]} 6. Bg2 {[%clk 0:02:57]}  d5 {[%clk 0:02:53]} 7. O-O {[%clk 0:02:48]}  Bc5 {[%clk 0:02:48]} 8. Nb3 {[%clk 0:02:46]}  Bb6 {[%clk 0:02:43]} 9. cxd5 {[%clk 0:02:46]}  exd5 {[%clk 0:02:41]} 10. Nc3 {[%clk 0:02:41]}  d4 {[%clk 0:02:41]} 11. Na4 {[%clk 0:02:39]}  O-O {[%clk 0:02:15]} 12. Bg5 {[%clk 0:01:52]}  Bg4 {[%clk 0:02:00]} 13. Nac5 {[%clk 0:01:42]}  Qe7 {[%clk 0:01:41]} 14. Ne4 {[%clk 0:01:32]}  Qe5 {[%clk 0:01:33]} 15. Bxf6 {[%clk 0:01:27]}  gxf6 {[%clk 0:01:33]} 16. Re1 {[%clk 0:01:10]}  f5 {[%clk 0:01:24]} 17. Ng5 {[%clk 0:01:08]}  f4 {[%clk 0:01:24]} 18. Nf3 {[%clk 0:01:03]}  Qf6 {[%clk 0:01:19]} 19. Qd2 {[%clk 0:00:54]}  fxg3 {[%clk 0:01:15]} 20. hxg3 {[%clk 0:00:55]}  Rad8 {[%clk 0:00:53]} 21. Rac1 {[%clk 0:00:53]}  Ne5 {[%clk 0:00:51]} 22. Nxe5 {[%clk 0:00:48]}  Qxe5 {[%clk 0:00:52]} 23. Bf3 {[%clk 0:00:48]}  Bf5 {[%clk 0:00:50]} 24. Qg5+ {[%clk 0:00:46]}  Kh8 {[%clk 0:00:45]} 25. g4 {[%clk 0:00:46]}  Rg8 {[%clk 0:00:41]} 26. Qh5 {[%clk 0:00:43]}  d3 {[%clk 0:00:19]} 27. e3 {[%clk 0:00:42]}  d2 {[%clk 0:00:18]} 28. Nxd2 {[%clk 0:00:41]}  Rxd2 {[%clk 0:00:19]} 29. Rc4 {[%clk 0:00:27]}  Qe6 {[%clk 0:00:17]} 30. Rf4 {[%clk 0:00:26]}  Bg6 {[%clk 0:00:17]} 31. Qh4 {[%clk 0:00:26]}  Rdd8 {[%clk 0:00:16]} 32. b3 {[%clk 0:00:25]}  f5 {[%clk 0:00:15]} 33. g5 {[%clk 0:00:23]}  Bc7 {[%clk 0:00:15]} 34. Rd4 {[%clk 0:00:22]}  Rxd4 {[%clk 0:00:15]} 35. Qxd4+ {[%clk 0:00:21]}  Be5 {[%clk 0:00:15]} 36. Qxa7 {[%clk 0:00:21]}  Qe7 {[%clk 0:00:15]} 37. Kf1 {[%clk 0:00:20]}  Qxg5 {[%clk 0:00:12]} 38. Qc5 {[%clk 0:00:20]}  Qf6 {[%clk 0:00:12]} 39. Rd1 {[%clk 0:00:19]}  f4 {[%clk 0:00:13]} 40. e4 {[%clk 0:00:18]}  Bf7 {[%clk 0:00:11]} 41. Rd7 {[%clk 0:00:16]}  Be6 {[%clk 0:00:10]} 42. Rxb7 {[%clk 0:00:15]}  Bh3+ {[%clk 0:00:10]} 43. Ke2 {[%clk 0:00:15]}  Bg4 {[%clk 0:00:10]} 44. Rb6 {[%clk 0:00:14]}  Bxf3+ {[%clk 0:00:09]} 45. Kxf3 {[%clk 0:00:15]}  Qg7 {[%clk 0:00:09]} 46. Ke2 {[%clk 0:00:10]}  Bd4 {[%clk 0:00:09]} 47. Qb5 {[%clk 0:00:06]}  Bxb6 {[%clk 0:00:09]} 48. Qxb6 {[%clk 0:00:07]}  Qd4 {[%clk 0:00:09]} 49. Qxd4+ {[%clk 0:00:06]}  Rg7 {[%clk 0:00:08]} 50. Kf3 {[%clk 0:00:06]}  Kg8 {[%clk 0:00:08]} 51. Qd8+ {[%clk 0:00:06]}  Kf7 {[%clk 0:00:08]} 52. Kxf4 {[%clk 0:00:06]}  Kg6 {[%clk 0:00:09]} 53. Qe8+ {[%clk 0:00:06]}  Rf7+ {[%clk 0:00:08]} 54. Qxf7+ {[%clk 0:00:06]}  Kxf7 {[%clk 0:00:09]} 55. a4 {[%clk 0:00:07]}  Ke6 {[%clk 0:00:10]} 56. a5 {[%clk 0:00:08]} 1-0


[Site "https://www.chess.com"]